bitfinex-derivatives/quotes_ETHF0:USTF0_20250726
["timestamp","ask_amount","ask_price","bid_price","bid_amount"]
[1753495195711,4.74692099,3704.3,3704.2,17.57213]
[1753495195906,4.20712099,3704.3,3704.2,17.57213]
[1753495196212,4.20712099,3704.3,3704.2,17.03232]
[1753495196408,4.20712099,3704.3,3703.8,0.74701553]
[1753495196409,0.53984,3704.1,3703.9,0.663]
[1753495196611,4.74696099,3704.0,3703.9,16.04352]
[1753495196806,4.74696099,3704.0,3703.6,0.53989]
[1753495197007,1.4447,3703.8,3703.7,26.75281]
[1753495197208,3.4866,3703.8,3703.7,13.30579]
[1753495197408,3.4866,3703.8,3703.7,26.75281]
[1753495197608,3.4866,3703.8,3703.7,28.93621]
[1753495198309,4.20668501,3703.8,3703.7,28.93621]
[1753495198510,4.20662353,3703.8,3703.7,28.93621]
[1753495199014,3.4866,3703.8,3703.7,28.93621]
[1753495199509,0.6618,3704.0,3703.9,0.53984]
[1753495199713,3.26170114,3704.0,3703.9,4.12514]
[1753495200013,3.26170114,3704.0,3703.9,17.57216]
[1753495200313,3.75800114,3704.0,3703.9,17.57217]
[1753495200913,3.75809181,3704.0,3703.9,17.57217]
[1753495201413,4.20669181,3704.0,3703.9,17.03232]
[1753495201609,4.20669181,3704.0,3703.9,17.57217]
[1753495201810,3.75809181,3704.0,3703.9,17.57217]
[1753495202704,2.0419,3704.5,3704.3,0.53979]
[1753495202918,3.038,3704.5,3704.4,3.5853]
[1753495203110,3.75822526,3704.5,3704.4,17.03232]
[1753495204209,0.72022526,3704.5,3704.4,38.57988261]
[1753495205712,0.6618,3705.0,3704.4,38.57988261]
[1753495205910,2.4596,3705.5,3705.4,0.4303]
[1753495206111,2.51519603,3705.5,3705.4,39.26605814]
[1753495206311,0.72079603,3705.5,3705.4,50.62605814]
[1753495206511,0.2,3705.9,3705.8,3.40878]
[1753495206707,0.2,3705.9,3705.8,28.8712]
[1753495207015,1.45964,3706.8,3706.7,1.4255]
[1753495207216,1.45963,3706.8,3706.7,3.5246]
[1753495207521,0.9202,3706.8,3706.7,16.97162]
[1753495208016,1.45956,3707.3,3707.2,3.5246]
[1753495209017,2.05836,3707.3,3707.2,3.5246]
[1753495209513,2.29986,3707.3,3707.2,3.5246]
[1753495210111,2.29986,3707.3,3707.2,2.8692]
[1753495210714,2.05836,3707.3,3707.2,3.5246]
[1753495213423,2.05836,3707.3,3707.2,16.97162]
[1753495213714,0.53936,3707.3,3707.2,16.97162]
[1753495218320,0.56846,3707.3,3707.2,16.97162]
[1753495218518,0.53936,3707.3,3707.2,35.04320261]
[1753495219824,0.6279,3707.6,3707.2,33.59950261]
[1753495220023,2.18062,3707.6,3707.5,3.5246]
[1753495220421,1.74762,3707.6,3707.5,16.97162]
[1753495220919,1.14882,3707.6,3707.5,16.97162]
[1753495221116,1.10222,3707.6,3707.5,16.97162]
[1753495221425,1.10222,3707.6,3707.5,35.04320261]
[1753495222426,0.53931,3707.7,3707.6,1.9648]
[1753495222624,0.53931,3707.7,3707.6,17.51092]
[1753495222825,1.20601,3707.7,3707.6,17.51092]
[1753495223221,1.20601,3707.7,3707.6,16.97162]
[1753495223421,2.17281,3707.7,3707.6,16.97162]
[1753495223822,2.21941,3707.7,3707.6,16.97162]
[1753495225629,2.21941,3707.7,3707.6,17.51094]
[1753495225816,0.2,3707.9,3707.8,3.5246]
[1753495225817,0.73928,3707.9,3707.8,3.5246]
[1753495226126,0.73928,3707.9,3707.8,16.97162]
[1753495226322,0.76838,3707.9,3707.8,16.97162]
[1753495227424,1.73518,3707.9,3707.8,16.97162]
[1753495227626,2.37278,3707.9,3707.8,16.97162]
[1753495228121,3.43699553,3707.9,3707.8,1.875]
[1753495228435,1.55272,3707.6,3707.5,1.8932]
[1753495228730,2.21942,3707.6,3707.5,2.3235]
[1753495229031,2.21942,3707.6,3707.5,16.97162]
[1753495230133,2.92845245,3707.6,3707.5,16.97162]
[1753495233628,0.98125,3707.4,3707.3,1.8881]
[1753495233835,1.56169,3707.1,3707.0,1.4619]
[1753495234131,3.60262245,3707.1,3707.0,15.2510417]
[1753495234330,3.60262245,3707.1,3707.0,15.6813417]
[1753495235040,3.60262245,3707.1,3707.0,16.1126417]
[1753495235334,3.60262245,3707.1,3707.0,16.6765417]
[1753495235836,3.60262245,3707.1,3707.0,17.3035417]
[1753495238033,2.89082245,3707.1,3707.0,17.3035417]
[1753495238439,2.95782245,3707.1,3707.0,17.3035417]
[1753495238640,3.64322245,3707.1,3707.0,17.3035417]
[1753495238939,2.89082245,3707.1,3707.0,17.3035417]
[1753495242337,2.89082245,3707.1,3707.0,3.8565217]
[1753495242538,2.89082245,3707.1,3707.0,17.3035417]
[1753495245439,0.70903245,3707.1,3707.0,36.66153984]
[1753495245640,1.44167132,3707.2,3707.1,0.53939]
[1753495245936,0.70903245,3707.2,3707.1,17.9022317]
[1753495246139,1.98101132,3707.5,3707.3,1.4374]
[1753495246336,0.71422453,3707.4,3707.3,1.97676]
[1753495246644,1.25357453,3707.4,3707.3,15.78589494]
[1753495246837,0.71422453,3707.4,3707.3,35.99377755]
[1753495248240,1.25357453,3707.4,3707.3,35.99377755]
[1753495248543,3.02057453,3707.4,3707.3,17.92219494]
[1753495248736,3.02057453,3707.4,3707.3,17.38283494]
[1753495248737,3.70597453,3707.4,3707.3,17.38283494]
[1753495249140,3.70597453,3707.4,3707.3,17.92219494]
[1753495249842,3.70597453,3707.4,3707.3,17.38283494]
[1753495250643,3.70597453,3707.4,3707.3,17.92219494]
[1753495251143,3.70597453,3707.4,3707.3,17.38283494]
[1753495251448,4.45299006,3707.4,3707.3,0.36211494]
[1753495251634,5.89447778,3707.4,3707.3,0.36211494]
[1753495251939,1.05532,3706.9,3706.8,13.0373]
[1753495252146,3.70604453,3706.9,3706.8,27.71972]
[1753495252444,3.70604453,3706.9,3706.8,16.39372]
[1753495252743,3.70604453,3706.9,3706.8,17.02072]
[1753495253243,3.70604453,3706.9,3706.8,3.5737]
[1753495258443,3.70604453,3706.9,3706.8,1.4727]
[1753495259640,1.60983,3706.8,3706.7,3.9752]
[1753495259945,1.60989,3706.4,3706.3,2.9101]
[1753495260149,3.70611453,3706.4,3706.3,3.5737]
[1753495260339,3.70611453,3706.4,3706.3,0.627]
[1753495260547,2.99193,3706.1,3706.0,3.5737]
[1753495260850,3.70615453,3706.1,3706.0,3.5737]
[1753495261441,3.70615453,3706.1,3706.0,2.9101]
[1753495262146,3.70615453,3706.1,3706.0,3.5737]
[1753495262543,3.70548264,3706.1,3706.0,3.5737]
[1753495262745,3.70548264,3706.1,3705.8,2.1587]
[1753495262746,2.99196,3705.9,3705.8,2.1587]
[1753495262942,3.70551264,3705.9,3705.8,2.1587]
[1753495263143,3.70551264,3705.9,3705.8,3.6314]
[1753495263339,3.70551264,3705.9,3705.8,5.7324]
[1753495263542,3.02011264,3705.9,3705.8,5.7324]
[1753495263748,3.02011264,3705.9,3705.8,6.08916632]
[1753495263944,3.70551264,3705.9,3705.8,6.08916632]
[1753495264651,3.16595264,3705.9,3705.8,6.62874632]
[1753495264846,3.02011264,3705.9,3705.8,6.08916632]
[1753495265346,1.75885264,3705.9,3705.8,6.62874632]
[1753495265552,1.16245264,3705.9,3705.8,6.62874632]
[1753495265849,0.4356,3706.1,3706.0,2.0495]
[1753495266052,0.74701553,3706.6,3706.0,2.0495]
[1753495266053,2.3176,3706.6,3706.5,3.5165]
[1753495266253,3.56970377,3706.6,3706.5,3.5165]
[1753495266755,2.93500377,3706.6,3706.5,3.5165]
[1753495267052,1.76734377,3706.6,3706.5,4.05598]
[1753495267252,0.71264377,3706.6,3706.5,17.85942184]
[1753495267653,0.71264377,3706.6,3706.5,35.93100445]
[1753495267848,1.25210377,3706.6,3706.5,35.39152445]
[1753495268053,1.12624377,3706.6,3706.5,35.93099445]
[1753495268253,1.14824377,3706.6,3706.5,35.93099445]
[1753495268652,2.36024377,3706.6,3706.5,35.93099445]
[1753495269748,1.12624377,3706.6,3706.5,35.93099445]
[1753495270154,0.71264377,3706.6,3706.5,35.93099445]
[1753495270957,1.16757,3707.2,3707.1,3.5165]
[1753495271251,2.31740451,3707.2,3707.1,3.87292434]
[1753495271455,2.90120451,3707.2,3707.1,3.87292434]
[1753495272159,2.36183451,3707.2,3707.1,4.05589]
[1753495272352,2.36183451,3707.2,3707.1,4.41231451]
[1753495272554,2.93650451,3707.2,3707.1,3.87292451]
[1753495272750,3.57120451,3707.2,3707.1,3.87293192]
[1753495273260,4.31822004,3707.2,3707.1,0.35643192]
[1753495274361,4.31840883,3707.2,3707.1,0.35643192]
[1753495274857,3.5713933,3707.2,3707.1,0.35643192]
[1753495275061,3.5713933,3707.2,3707.1,1.81893192]
[1753495275260,3.5713933,3707.2,3707.1,3.87293192]
[1753495275655,2.9013933,3707.2,3707.1,3.87293192]
[1753495276664,2.9291933,3707.2,3707.1,3.87293192]
[1753495277864,0.7144233,3707.2,3707.1,4.41232192]
[1753495278064,0.7144233,3707.2,3707.1,17.85934192]
[1753495278468,0.7144233,3707.2,3707.1,18.60635745]
[1753495279268,0.7144233,3707.2,3707.1,36.67794006]
[1753495284374,0.7144233,3707.2,3707.1,18.60635745]
[1753495284583,0.7144233,3707.2,3707.1,36.67794006]
[1753495286583,3.4026334,3707.7,3707.6,1.4268]
[1753495286874,4.6912334,3707.7,3707.6,3.87293192]
[1753495287080,5.3259334,3707.7,3707.6,3.87293192]
[1753495287283,3.8844,3707.7,3707.6,3.87293192]
[1753495287584,1.4415334,3707.8,3707.7,3.5165]
[1753495287777,1.4415334,3707.8,3707.7,17.31995192]
[1753495287977,3.4854234,3707.8,3707.7,17.85925192]
[1753495288786,2.9461334,3707.8,3707.7,17.85925192]
[1753495289080,3.0610234,3707.8,3707.7,17.85925192]
[1753495289482,1.6415334,3707.9,3707.8,4.05579]
[1753495289784,0.2,3707.9,3707.8,17.50281]
[1753495289972,0.2,3707.9,3707.8,35.92853474]
[1753495290383,0.2,3707.9,3707.8,35.92848863]
[1753495293184,1.57474,3708.8,3708.7,3.5165]
[1753495293581,0.95274,3708.8,3708.7,16.96352]
[1753495294585,0.53914,3708.9,3708.8,0.53914]
[1753495294778,0.53914,3708.9,3708.8,16.96352]
[1753495294975,0.95274,3708.9,3708.8,16.96352]
[1753495295182,2.29614,3708.9,3708.8,16.96352]
[1753495295382,2.97294,3708.9,3708.8,16.96352]
[1753495295780,2.97294,3708.9,3708.8,17.31741018]
[1753495298286,2.97294,3708.9,3708.8,16.96352]
[1753495298587,3.67203664,3708.9,3708.8,16.96352]
[1753495298782,2.99523664,3708.9,3708.8,17.31724542]
[1753495298983,2.92583664,3708.9,3708.8,17.31724542]
[1753495299179,2.27903664,3708.9,3708.8,17.31724542]
[1753495299587,2.27903664,3708.9,3708.8,17.85638542]
[1753495299775,1.65183664,3708.9,3708.8,17.85638542]
[1753495299980,0.69909664,3708.9,3708.8,33.06266463]
[1753495300787,0.69909664,3708.9,3708.8,32.70893921]
[1753495301082,0.05,3709.0,3708.9,4.13113]
[1753495301288,0.05,3709.0,3708.9,17.57815]
[1753495301589,0.05,3709.0,3708.9,32.78442921]
[1753495302289,0.58911,3709.0,3708.9,32.78442921]
[1753495302484,0.05,3709.0,3708.9,32.78442921]
[1753495302792,0.58911,3709.0,3708.9,32.78442921]
[1753495304086,0.58911,3709.0,3708.9,32.24529921]
[1753495304288,0.53914,3708.8,3708.7,1.8874]
[1753495304588,3.72612772,3708.8,3708.7,1.8874]
[1753495304982,3.72612772,3708.8,3708.7,4.0444]
[1753495307592,3.72612772,3708.8,3708.7,4.7159]
[1753495308193,3.72612772,3708.8,3708.7,5.07044168]
[1753495308391,3.72612772,3708.8,3708.7,5.91454168]
[1753495309592,3.72612772,3708.8,3708.7,7.42164168]
[1753495310095,3.72612772,3708.8,3708.7,7.99094168]
[1753495310793,3.72612772,3708.8,3708.7,7.6364]
[1753495314687,3.72612772,3708.8,3708.7,5.978]
[1753495316096,3.72612772,3708.8,3708.7,6.6165]
[1753495316498,3.72612772,3708.8,3708.7,7.6364]
[1753495317192,3.72612772,3708.8,3708.7,7.99175547]
[1753495318101,4.47314325,3708.8,3708.7,4.39975547]
[1753495318300,4.47314325,3708.8,3708.7,4.0444]
[1753495318601,4.47314325,3708.8,3708.7,0.90674819]
[1753495318790,0.53926,3708.0,3707.9,0.6715]
[1753495318999,1.28627553,3708.0,3707.9,0.35556298]
[1753495319196,1.98669367,3708.0,3707.9,0.35556298]
[1753495319497,0.5393,3707.7,3707.6,3.592]
[1753495319798,1.23971814,3707.7,3707.6,3.94773625]
[1753495321204,0.5394,3707.0,3706.9,0.6715]
[1753495321501,0.5394,3707.0,3706.9,18.01381287]
[1753495321695,0.5394,3707.0,3706.9,33.22009208]
[1753495322201,0.5394,3707.1,3706.9,31.06599208]
[1753495322400,0.53939,3707.1,3707.0,17.26679734]
[1753495322598,0.53939,3707.1,3707.0,32.47307655]
[1753495324200,0.53939,3707.1,3707.0,32.24529921]
[1753495324394,1.23944582,3707.1,3707.0,32.24529921]
[1753495326707,0.53939,3707.1,3707.0,32.24529921]
[1753495327001,0.58819,3707.1,3707.0,32.24529921]
[1753495327197,0.68339,3707.1,3707.0,32.24529921]
[1753495327593,0.68339,3707.1,3707.0,17.03902]
[1753495327905,0.68339,3707.1,3707.0,2.6396]
[1753495328196,0.68343,3706.8,3706.7,4.9863]
[1753495328402,0.68343,3706.8,3706.7,2.9915]
[1753495328590,0.68343,3706.8,3706.7,3.0096]
[1753495328795,0.70223,3706.8,3706.7,1.9862]
[1753495329000,0.65842,3706.2,3706.1,3.6623]
[1753495329396,0.65842,3706.2,3706.1,17.10932]
[1753495330197,0.55832,3706.2,3706.1,17.64885]
[1753495330599,0.55832,3706.2,3706.1,17.10932]
[1753495330799,0.0188,3706.2,3706.1,17.64885]
[1753495331105,0.53952,3706.2,3706.1,17.64885]
[1753495331296,1.34858,3706.9,3706.1,17.64885]
[1753495331297,0.0739,3706.7,3706.6,1.4531]
[1753495331604,0.53945,3706.7,3706.6,3.6623]
[1753495331800,0.53945,3706.7,3706.6,17.10932]
[1753495333204,0.53945,3706.7,3706.6,17.98540406]
[1753495333602,0.0251,3707.1,3706.8,2.64522]
[1753495333800,0.53942,3706.9,3706.8,4.40931553]
[1753495333996,0.0251,3707.1,3706.8,4.40931553]
[1753495334200,0.5394,3707.0,3706.9,17.10932]
[1753495334405,0.5394,3707.1,3707.0,3.6623]
[1753495334607,0.5882,3707.1,3707.0,17.10932]
[1753495335210,0.5394,3707.1,3707.0,17.10932]
[1753495335701,0.53937,3707.2,3707.1,1.4531]
[1753495335902,1.23658628,3707.2,3707.1,17.10932]
[1753495336108,1.23658628,3707.2,3707.1,33.06261474]
[1753495336607,1.23659727,3707.2,3707.1,19.61559474]
[1753495336809,1.23659727,3707.2,3707.1,33.06261474]
[1753495337007,0.0251,3707.6,3707.1,31.50611474]
[1753495337210,0.53932,3707.6,3707.5,3.6623]
[1753495337707,0.53932,3707.6,3707.5,32.31559921]
[1753495337912,0.69725003,3707.6,3707.5,32.31559921]
[1753495338112,0.53932,3707.6,3707.5,32.85492921]
[1753495338309,1.23657003,3707.6,3707.5,18.86857921]
[1753495338613,1.25847003,3707.6,3707.5,32.31559921]
[1753495338815,1.30107003,3707.6,3707.5,32.31559921]
[1753495340111,1.28987003,3707.6,3707.5,32.31559921]
[1753495340416,1.25847003,3707.6,3707.5,32.31559921]
[1753495341715,1.23657003,3707.6,3707.5,32.85492921]
[1753495342016,1.23657003,3707.6,3707.5,32.31559921]
[1753495342203,0.53932,3707.6,3707.5,32.85492921]
[1753495342407,1.23745909,3707.6,3707.5,32.85492921]
[1753495343809,1.23773168,3707.6,3707.5,32.85492921]
[1753495344213,1.23773168,3707.6,3707.5,32.31559921]
[1753495344414,1.24613168,3707.6,3707.5,32.31559921]
[1753495344715,1.25963168,3707.6,3707.5,32.31559921]
[1753495345817,0.54772,3707.6,3707.5,32.85492921]
[1753495346018,0.0084,3707.6,3707.5,32.85492921]
[1753495346214,0.7075844,3707.6,3707.5,32.85492921]
[1753495346517,1.34815,3708.1,3707.8,0.53929]
[1753495346518,0.53928,3707.9,3707.8,0.53929]
[1753495346719,0.53928,3707.9,3707.8,18.39562553]
[1753495346912,0.53927,3708.0,3707.9,1.99237]
[1753495347107,0.0084,3708.2,3708.1,3.54884]
[1753495347311,1.23848929,3708.2,3708.1,4.40931553]
[1753495347516,1.23848929,3708.2,3708.1,17.10932]
[1753495347821,1.24688929,3708.2,3708.1,17.10932]
[1753495348017,1.23848929,3708.2,3708.1,32.31559921]
[1753495348512,0.69924929,3708.2,3708.1,33.60185474]
[1753495348816,1.23845929,3708.4,3708.1,30.85341474]
[1753495349017,0.53921,3708.4,3708.3,1.4531]
[1753495349320,0.54759,3708.5,3708.4,3.6623]
[1753495349509,0.54759,3708.5,3708.4,17.64852]
[1753495349510,0.53919,3708.5,3708.4,17.64852]
[1753495349819,1.23972509,3708.5,3708.4,32.85479921]
[1753495350010,0.70053509,3708.5,3708.4,32.85479921]
[1753495350210,0.70053509,3708.5,3708.4,33.60181474]
[1753495351720,0.70053509,3708.5,3708.4,44.86581474]
[1753495352908,0.53915,3708.8,3708.7,3.6623]
[1753495353116,1.23879284,3708.8,3708.7,3.6623]
[1753495353306,1.23879284,3708.8,3708.7,17.10932]
[1753495353307,1.24719284,3708.8,3708.7,17.10932]
[1753495354218,0.70804284,3708.8,3708.7,32.85475921]
[1753495354416,0.70804284,3708.8,3708.7,17.64848]
[1753495354621,1.24718284,3708.8,3708.7,32.31559921]
[1753495356225,1.23878284,3708.8,3708.7,32.85475921]
[1753495357019,1.23878284,3708.8,3708.7,33.60177474]
[1753495357020,0.69964284,3708.8,3708.7,33.60177474]
[1753495358418,0.05,3709.0,3708.9,1.94983]
[1753495358614,0.05,3709.0,3708.9,28.85155]
[1753495358823,0.05,3709.0,3708.9,44.05782921]
[1753495363022,0.05,3709.0,3708.9,32.79982921]
[1753495363222,0.05,3709.0,3708.9,25.31432]
[1753495363223,0.58911,3709.0,3708.9,25.31432]
[1753495364325,1.28761947,3709.0,3708.9,26.21732]
[1753495364622,0.58911,3709.0,3708.9,26.21732]
[1753495365017,1.28757815,3709.0,3708.9,26.21732]
[1753495365221,1.28757815,3709.0,3708.9,14.96332]
[1753495365417,1.28757815,3709.0,3708.9,1.5163]
[1753495366620,1.28757815,3709.0,3708.9,3.6074]
[1753495367116,1.28757815,3709.0,3708.9,0.6133]
[1753495369325,1.28757815,3709.0,3708.9,1.5163]
[1753495369533,1.28757815,3709.0,3708.9,0.6133]
[1753495370626,0.53918,3708.5,3708.4,0.903]
[1753495370823,0.53918,3708.5,3708.4,2.9941]
[1753495371024,1.23764815,3708.5,3708.4,17.05442]
[1753495372731,1.23764815,3708.5,3708.4,32.26069921]
[1753495374634,0.69846815,3708.5,3708.4,32.79989921]
[1753495374933,0.53915,3708.8,3708.7,3.46616]
[1753495375122,0.58911,3709.0,3708.9,0.53913]
[1753495375326,1.28966543,3709.0,3708.9,15.39685]
[1753495375529,0.75055543,3709.0,3708.9,30.60312921]
[1753495375727,0.75055543,3709.0,3708.9,32.79982921]
[1753495379936,0.05,3709.0,3708.9,32.79982921]
[1753495380738,0.7518161,3709.0,3708.9,32.79982921]
[1753495381933,0.7518161,3709.0,3708.9,37.79982921]
[1753495382440,0.53902,3709.6,3709.5,3.6074]
[1753495382737,0.53902,3709.6,3709.5,17.59346]
[1753495382938,1.98275841,3709.6,3709.5,17.59346]
[1753495383137,1.98257465,3709.6,3709.5,17.59346]
[1753495383538,1.44355465,3709.6,3709.5,17.59346]
[1753495383740,1.98257465,3709.6,3709.5,17.59346]
[1753495384540,1.44355465,3709.6,3709.5,17.59346]
[1753495385134,0.53902,3709.6,3709.5,17.59346]
[1753495385738,1.98257465,3709.6,3709.5,17.59346]
[1753495385936,0.53902,3709.6,3709.5,17.59346]
[1753495386439,0.53902,3709.6,3709.5,17.05442]
[1753495386941,0.53902,3709.6,3709.5,17.59346]
[1753495387634,0.53902,3709.6,3709.5,17.05442]
[1753495387834,0.53902,3709.6,3709.5,0.6133]
[1753495388637,0.53902,3709.6,3709.0,0.6159]
[1753495388638,0.5391,3709.1,3709.0,0.6159]
[1753495389735,0.5391,3709.1,3709.0,1.15501]
[1753495390040,0.53909,3709.2,3709.1,0.6159]
[1753495390241,0.53909,3709.2,3709.1,1.4586]
[1753495390439,0.53909,3709.2,3709.1,1.9977]
[1753495390642,0.53909,3709.2,3709.1,3.0674]
[1753495390838,0.53909,3709.2,3709.1,4.0605]
[1753495391033,1.44355465,3709.5,3709.4,3.5214]
[1753495391239,1.98259465,3709.5,3709.4,2.0628]
[1753495391438,0.53904,3709.5,3709.4,2.0628]
[1753495391645,1.98259465,3709.5,3709.4,2.0628]
[1753495391838,0.53904,3709.5,3709.4,3.5214]
[1753495392139,1.98259465,3709.5,3709.4,3.5214]
[1753495392535,0.53904,3709.5,3709.4,3.5214]
[1753495392738,1.44355465,3709.6,3709.5,4.06044]
[1753495392934,1.44355465,3709.7,3709.5,1.95324]
[1753495393131,1.98257465,3709.7,3709.6,3.5214]
[1753495393735,1.98257465,3709.7,3709.6,1.4586]
[1753495394440,2.68095657,3709.7,3709.6,1.4586]
[1753495395133,2.68095657,3709.7,3709.6,3.5214]
[1753495395741,2.68095657,3709.7,3709.6,5.4411]
[1753495395934,1.23740192,3709.7,3709.6,5.4411]
[1753495396340,1.23740192,3709.7,3709.6,4.7925]
[1753495398035,1.23740192,3709.7,3709.6,5.4411]
[1753495398638,1.23740192,3709.7,3709.6,5.43648886]
[1753495398838,1.23740192,3709.7,3709.6,4.8252]
[1753495399840,1.23740192,3709.7,3709.6,1.9197]
[1753495402439,1.23740192,3709.7,3709.6,4.1766]
[1753495402642,1.23740192,3709.7,3709.6,5.4411]
[1753495403044,1.98312252,3709.7,3709.6,5.4411]
[1753495403240,1.23740192,3709.7,3709.6,5.4411]
[1753495403439,2.68150444,3709.7,3709.6,5.4411]
[1753495405846,1.23740192,3709.7,3709.6,5.4411]
[1753495409847,1.23740192,3709.7,3709.6,5.4411]
[1753495411462,0.69838192,3709.7,3709.6,5.98012]
[1753495411655,2.14348018,3709.7,3709.6,5.98012]
[1753495411857,0.69838192,3709.7,3709.6,34.63341921]
[1753495412159,0.2,3709.9,3709.8,4.06039]
[1753495412359,0.2,3709.9,3709.8,17.50741]
[1753495412562,0.89921645,3709.9,3709.8,33.46070474]
[1753495413156,0.23351645,3709.9,3709.8,33.46070474]
[1753495413361,1.44509826,3710.2,3710.1,4.06035]
[1753495413763,1.44509826,3710.2,3710.1,17.50737]
[1753495414464,1.44509826,3710.2,3710.1,17.85261114]
[1753495415059,1.98401826,3710.3,3710.1,17.85261114]
[1753495415255,2.59871826,3710.3,3710.2,17.32316114]
[1753495416064,2.05979826,3710.3,3710.2,17.32316114]
[1753495416260,2.59871826,3710.3,3710.2,16.97792]
[1753495417661,3.03781826,3710.3,3710.2,16.97792]
[1753495419067,1.59272,3710.3,3710.2,16.97792]
[1753495420071,3.03781826,3710.3,3710.2,16.97792]
[1753495420470,1.59272,3710.3,3710.2,16.97792]
[1753495422562,1.0538,3710.3,3710.2,17.51686]
[1753495422768,1.59272,3710.3,3710.2,16.97792]
[1753495423273,3.03781826,3710.3,3710.2,2.9115]
[1753495423568,1.59272,3710.3,3710.2,0.649]
[1753495423967,1.59272,3710.3,3710.2,1.519]
[1753495425267,2.28909471,3710.3,3710.2,1.519]
[1753495425667,2.28909471,3710.3,3710.2,3.1229]
[1753495425874,4.63369471,3710.3,3710.2,1.66675324]
[1753495427879,4.63369471,3710.3,3710.2,2.07475324]
[1753495428172,4.01689471,3710.3,3710.2,3.5309]
[1753495429674,4.63369471,3710.3,3710.2,3.5309]
[1753495438980,4.01689471,3710.3,3710.2,3.5309]
[1753495439382,4.01689471,3710.3,3710.2,3.88436977]
[1753495440080,1.23529471,3710.3,3710.2,3.88436977]
[1753495440383,1.23529471,3710.3,3710.2,17.33138977]
[1753495442880,1.23529471,3710.3,3710.2,32.53766898]
[1753495444384,1.23529471,3710.3,3710.2,33.07660898]
[1753495444689,1.23529471,3710.3,3710.2,32.53766898]
[1753495444889,0.69637471,3710.3,3710.2,33.07660898]
[1753495445589,1.23529471,3710.3,3710.2,32.53766898]
[1753495445788,1.23529471,3710.3,3710.2,33.07660898]
[1753495446089,1.23529471,3710.3,3710.2,32.53766898]
[1753495446590,1.85639471,3710.3,3710.2,32.53766898]
[1753495446787,1.85639471,3710.3,3710.2,33.07660898]
[1753495447090,1.85639471,3710.3,3710.2,32.53766898]
[1753495448290,1.85639471,3710.3,3710.2,33.07660898]
[1753495449994,4.58429471,3710.3,3710.2,17.33138977]
[1753495450196,4.58429471,3710.3,3710.2,16.71198977]
[1753495450489,4.58429471,3710.3,3710.2,17.33558977]
[1753495450890,4.58429471,3710.3,3710.2,16.98212]
[1753495453998,3.98499471,3710.3,3710.2,16.98212]
[1753495457498,1.23529471,3710.3,3710.2,16.98212]
[1753495457700,0.69637471,3710.3,3710.2,17.52106]
[1753495457896,1.44625385,3710.3,3710.2,32.72733921]
[1753495458101,1.44625385,3710.5,3710.4,2.6321]
[1753495458294,1.44625385,3710.5,3710.4,4.78882553]
[1753495458496,1.44625385,3710.6,3710.5,4.04179]
[1753495458804,2.1377173,3710.6,3710.5,17.30913478]
[1753495459004,2.1377173,3710.6,3710.5,33.05430399]
[1753495459206,2.6765973,3710.6,3710.5,32.51541399]
[1753495459504,3.2976973,3710.6,3710.5,32.51541399]
[1753495459804,1.85144345,3710.6,3710.5,32.51541399]
[1753495460206,1.31256345,3710.6,3710.5,33.05430399]
[1753495460406,0.69146345,3710.6,3710.5,33.05430399]
[1753495461003,1.44625385,3710.8,3710.7,4.04176]
[1753495461196,1.44625385,3710.8,3710.7,4.40097478]
[1753495461402,0.69122039,3710.8,3710.7,17.84799478]
[1753495461595,1.23007039,3710.8,3710.7,17.84799478]
[1753495461800,0.69122039,3710.8,3710.7,17.84799478]
[1753495462205,0.69122039,3710.8,3710.7,33.05427399]
[1753495462899,1.98508385,3711.0,3710.8,1.97685]
[1753495463102,1.22972905,3710.9,3710.8,15.42387]
[1753495463302,1.22972905,3710.9,3710.8,17.5419841]
[1753495463497,1.22972905,3710.9,3710.8,30.9890041]
[1753495463498,0.69089905,3710.9,3710.8,30.9890041]
[1753495463694,1.22972905,3710.9,3710.8,32.5150541]
[1753495463900,3.02212905,3710.9,3710.8,32.5150541]
[1753495464294,3.43372905,3710.9,3710.8,32.5150541]
[1753495464904,3.97942905,3710.9,3710.8,33.0539041]
[1753495465205,3.97942905,3710.9,3710.8,32.5150541]
[1753495465603,0.69089905,3710.9,3710.8,33.0539041]
[1753495465906,1.31199905,3710.9,3710.8,33.0539041]
[1753495466803,1.85082905,3710.9,3710.8,32.5150541]
[1753495467197,2.59852905,3710.9,3710.8,32.5150541]
[1753495468007,2.05969905,3710.9,3710.8,33.0539041]
[1753495468306,0.69089905,3710.9,3710.8,33.0539041]
[1753495469211,1.85082905,3710.9,3710.8,33.0539041]
[1753495469507,1.73559905,3710.9,3710.8,33.0539041]
[1753495469697,0.69089905,3710.9,3710.8,33.0539041]
[1753495470301,1.29299905,3710.9,3710.8,33.0539041]
[1753495470807,1.83182905,3710.9,3710.8,32.5150541]
[1753495471007,1.83182905,3710.9,3710.8,32.51466798]
[1753495471604,1.22972905,3710.9,3710.8,32.51466798]
[1753495471810,0.69089905,3710.9,3710.8,33.05351798]
[1753495473514,1.22972905,3710.9,3710.8,33.05351798]
[1753495473812,0.69089905,3710.9,3710.8,33.05351798]
[1753495474012,0.69089905,3710.9,3710.8,44.23951798]
[1753495474210,1.22972905,3710.9,3710.8,44.23951798]
[1753495474707,0.69089905,3710.9,3710.8,44.23951798]
[1753495475108,1.22972905,3710.9,3710.8,44.23951798]
[1753495475306,0.69089905,3710.9,3710.8,44.23951798]
[1753495475509,1.22972905,3710.9,3710.8,44.23951798]
[1753495475911,0.69089905,3710.9,3710.8,44.23951798]
[1753495476715,0.69026604,3710.9,3710.8,44.23951798]
[1753495477102,1.22909604,3710.9,3710.8,44.23951798]
[1753495477410,0.69026604,3710.9,3710.8,44.23951798]
[1753495477609,1.22909604,3710.9,3710.8,43.70066798]
[1753495478511,1.22909604,3710.9,3710.8,44.23951798]
[1753495479214,0.69026604,3710.9,3710.8,44.23951798]
[1753495481514,0.69026604,3710.9,3710.8,33.05351798]
[1753495481818,0.69026604,3710.9,3710.8,44.23451798]
[1753495482319,1.22909604,3710.9,3710.8,44.23451798]
[1753495482909,1.82739604,3710.9,3710.8,44.23451798]
[1753495483116,3.27364989,3710.9,3710.8,44.23451798]
[1753495483613,2.73481989,3710.9,3710.8,44.23451798]
[1753495484322,0.5983,3710.9,3710.8,44.23451798]
[1753495484820,2.04296098,3710.9,3710.8,44.23451798]
[1753495485022,2.73379489,3710.9,3710.8,44.23451798]